fUST/lending_fUST_20240821
["ID","MTS","AMOUNT","RATE_DAILY","PERIOD"]
[335435857,1724229076639,-500.0,0.00034931,21]
[335435858,1724229076648,-500.0,0.00034931,21]
[335435859,1724229076658,-500.0,0.00034931,21]
[335435860,1724229076667,-500.0,0.00034931,21]
[335435861,1724229076677,-500.0,0.00034931,21]
[335435862,1724229076686,-107.74800799,0.00034931,21]
[335435863,1724229076812,-392.25199201,0.00034931,21]
[335435864,1724229076822,-500.0,0.00034931,21]
[335435865,1724229076833,-500.0,0.00034931,21]
[335435866,1724229076843,-500.0,0.00034931,21]
[335435867,1724229076853,-500.47505924,0.00034931,2]
[335435868,1724229076863,-500.0,0.00034931,21]
[335435869,1724229076873,-409.31663364,0.00034931,21]
[335435870,1724229076883,-500.0,0.00034931,21]
[335435871,1724229076894,-500.0,0.00034931,21]
[335435872,1724229076905,-500.0,0.00034931,21]
[335435873,1724229076916,-500.0,0.00034931,21]
[335435874,1724229076926,-500.16997603,0.00034931,21]
[335435875,1724229076936,-500.0,0.00034931,21]
[335435876,1724229076947,-500.0,0.00034931,21]
[335435877,1724229076958,-500.0,0.00034931,21]
[335435878,1724229077038,-500.0,0.00034931,21]
[335435879,1724229077053,-500.0,0.00034931,21]
[335435880,1724229077062,-500.0,0.00034931,7]
[335435881,1724229077071,-500.0,0.00034931,21]
[335435882,1724229077080,-500.0,0.00034931,21]
[335435883,1724229077090,-500.0,0.00034931,21]
[335435884,1724229077099,-500.0,0.00034931,21]
[335435885,1724229077109,-501.84754252,0.00034931,21]
[335435886,1724229077119,-500.0,0.00034931,21]
[335435887,1724229077128,-500.0,0.00034931,7]
[335435888,1724229077137,-500.0,0.00034931,21]
[335435889,1724229077147,-500.0,0.00034931,21]
[335435890,1724229077156,-500.0,0.00034931,21]
[335435891,1724229077166,-342.89651798,0.00034931,21]
[335435892,1724229077176,-500.0,0.00034931,21]
[335435893,1724229077185,-500.0,0.00034931,21]
[335435894,1724229077195,-500.0,0.00034931,21]
[335435895,1724229077205,-500.0,0.00034931,21]
[335435896,1724229077214,-500.0,0.00034931,21]
[335435897,1724229077225,-500.0,0.00034931,21]
[335435898,1724229077239,-500.0,0.00034931,21]
[335435899,1724229077249,-500.89408415,0.00034931,21]
[335435900,1724229077259,-500.0,0.00034931,21]
[335435901,1724229077270,-512.00156767,0.00034931,21]
[335435902,1724229077280,-500.0,0.00034931,21]
[335435903,1724229077289,-500.0,0.00034931,21]
[335435904,1724229077299,-500.0,0.00034931,21]
[335435905,1724229077309,-500.0,0.00034931,21]
[335435906,1724229077318,-500.0,0.00034931,21]
[335435907,1724229077328,-500.0,0.00034931,21]
[335435908,1724229077337,-500.0,0.00034931,21]
[335435909,1724229077347,-431.77859925,0.00034931,21]
[335435910,1724229077356,-500.0,0.00034931,21]
[335435911,1724229077365,-505.34351822,0.00034931,21]
[335435912,1724229077375,-500.0,0.00034931,21]
[335435913,1724229077386,-500.0,0.00034931,21]
[335435914,1724229077396,-500.0,0.00034931,21]
[335435915,1724229077406,-500.0,0.00034931,21]
[335435916,1724229077416,-500.0,0.00034931,21]
[335435917,1724229077426,-504.5727443,0.00034931,21]
[335435918,1724229077436,-500.0,0.00034931,21]
[335435919,1724229077446,-500.0,0.00034931,21]
[335435920,1724229077456,-500.0,0.00034931,21]
[335435921,1724229077465,-500.0,0.00034931,21]
[335435922,1724229077474,-505.01381328,0.00034931,21]
[335435923,1724229077484,-500.0,0.00034931,21]
[335435924,1724229077494,-503.82597074,0.00034931,21]
[335435925,1724229077503,-500.0,0.00034931,21]
[335435926,1724229077513,-500.0,0.00034931,21]
[335435927,1724229077522,-500.0,0.00034931,21]
[335435928,1724229077531,-505.48695279,0.00034931,21]
[335435929,1724229077541,-500.0,0.00034931,21]
[335435930,1724229077550,-503.17705376,0.00034931,21]
[335435931,1724229077560,-500.0,0.00034931,21]
[335435932,1724229077570,-472.77511493,0.00034931,21]
[335435933,1724229077580,-500.0,0.00034931,21]
[335435934,1724229077590,-512.8748839,0.00034931,21]
[335435935,1724229077605,-500.0,0.00034931,21]
[335435936,1724229077614,-576.62884116,0.00034931,21]
[335435937,1724229077634,-500.0,0.00034931,21]
[335435938,1724229077652,-500.0,0.00034931,21]
[335435939,1724229077672,-500.0,0.00034931,21]
[335435940,1724229077692,-505.54129742,0.00034931,21]
[335435941,1724229077714,-500.0,0.00034931,21]
[335435942,1724229077743,-501.23297289,0.00034931,21]
[335435943,1724229077759,-519.22228008,0.00034931,21]
[335435944,1724229077778,-500.0,0.00034931,21]
[335435945,1724229077798,-500.0,0.00034931,21]
[335435946,1724229077816,-502.45200596,0.00034931,21]
[335435947,1724229077832,-500.0,0.00034931,21]
[335435948,1724229077851,-500.0,0.00034931,21]
[335435949,1724229077870,-500.0,0.00034931,21]
[335435950,1724229077887,-500.0,0.00034931,21]
[335435951,1724229077902,-500.0,0.00034931,21]
[335435952,1724229077916,-503.58467771,0.00034931,21]
[335435953,1724229077931,-500.0,0.00034931,21]
[335435954,1724229077945,-500.0,0.00034931,21]
[335435955,1724229077960,-500.0,0.00034931,21]
[335435956,1724229077975,-500.0,0.00034931,21]
[335435957,1724229077990,-500.0,0.00034931,21]
[335435958,1724229078004,-500.0,0.00034931,21]
[335435959,1724229078019,-500.0,0.00034931,21]
[335435960,1724229078033,-500.0,0.00034931,21]
[335435961,1724229078048,-500.0,0.00034931,21]
[335435962,1724229078063,-458.40034614,0.00034931,21]
[335435964,1724229237899,154.23140491,7.96e-05,2]
[335435965,1724229255081,512.53542727,0.0002031,120]
[335435966,1724229273107,-3093.28626151,8.521e-05,2]
[335435967,1724229273129,-154.79103211,8.521e-05,2]
[335435968,1724229273154,-300.0,8.531e-05,2]
[335435969,1724229273176,-300.0,8.531e-05,2]
[335435970,1724229273198,-2128.42304839,8.532e-05,2]
[335435971,1724229273220,-780.20005204,8.532e-05,2]
[335435972,1724229273241,-544.12061263,8.769e-05,2]
[335435973,1724229273263,-154.79103211,8.793e-05,2]
[335435974,1724229273287,-420.0,9.384e-05,2]
[335435975,1724229273308,-420.0,9.384e-05,2]
[335435976,1724229273331,-24900.0,9.996e-05,2]
[335435977,1724229273354,-587.0,0.00010323,2]
[335435978,1724229273380,-570.0,0.00010323,2]
[335435979,1724229273403,-647.38796121,0.00011355,2]
[335435980,1724229276010,154.79103211,8.019e-05,2]
[335435982,1724229370095,1754.82103027,8.019e-05,2]
[335435983,1724229454149,649.89986311,7.954e-05,2]
[335436010,1724230187987,1057.94364591,7.954e-05,2]
[335436047,1724230231799,-159.32680748,8.761e-05,2]
[335436049,1724230231809,-180.115963,0.0001061,2]
[335436050,1724230231818,-180.115963,0.00010721,2]
[335436052,1724230231829,-163.35283328,0.00010832,2]
[335436101,1724230237857,-16.76312972,0.00010832,2]
[335436103,1724230237867,-180.115963,0.00010942,2]
[335436105,1724230237876,-217.11,0.00010959,2]
[335436108,1724230237887,-119.17818454,0.00010959,2]
[335436110,1724230237899,-61.74181546,0.00010959,2]
[335436112,1724230237908,-180.115963,0.00011053,2]
[335436114,1724230237919,-180.115963,0.00011163,2]
[335436116,1724230237928,-300.0,0.00011662,2]
[335436117,1724230237938,-16498.50604515,0.00011663,2]
[335436118,1724230237950,-8401.49395485,0.00011663,2]
[335436119,1724230237959,-55483.88635971,0.00011712,2]
[335436120,1724230237969,-20799.06185203,0.00011842,2]
[335436121,1724230237981,-9661.21518978,0.00011999,2]
[335436122,1724230237992,-81593.4376702,0.0001211,2]
[335436123,1724230238002,-7014.77930494,0.0001212,2]
[335436124,1724230238012,-1666.89165086,0.00012163,2]
[335436125,1724230238237,-1899.98176803,0.00012163,2]
[335436126,1724230238250,-5279.09961939,0.00012163,2]
[335436127,1724230238259,-4864.24549075,0.00012307,2]
[335436128,1724230238269,-1613.76183123,0.00012356,2]
[335436129,1724230238279,-168.1439037,0.00012407,2]
[335436130,1724230238289,-2713.12344355,0.00012516,2]
[335436131,1724230238298,-2713.12344355,0.00012516,2]
[335436132,1724230238308,-2166.67279368,0.00012516,2]
[335436133,1724230238317,-991.38842768,0.00012689,2]
[335436134,1724230238327,-2143.22745307,0.00012779,2]
[335436135,1724230238337,-1500.0,0.00012779,2]
[335436136,1724230238347,-811.55198591,0.00012779,2]
[335436137,1724230238357,-810.8243326,0.00012782,2]
[335436138,1724230238367,-2282.92421799,0.00012782,3]
[335436139,1724230238376,-2128.07001891,0.00012782,2]
[335436140,1724230238386,-420.0,0.00012828,2]
[335436141,1724230238396,-298.97351394,0.00012886,2]
[335436142,1724230238407,-422.40164092,0.00012898,2]
[335436143,1724230238416,-602.00501387,0.00012898,2]
[335436144,1724230238425,-154.89903915,0.00012934,2]
[335436145,1724230238435,-569.66960368,0.00012934,2]
[335436146,1724230238444,-898.92251749,0.00012934,2]
[335436147,1724230238454,-156.88380059,0.00012934,2]
[335436148,1724230238467,-288.34165707,0.00012934,2]
[335436149,1724230238477,-495.19490276,0.00012934,2]
[335436150,1724230238486,-155.6116134,0.00012934,2]
[335436151,1724230238496,-409.75022329,0.00012934,2]
[335436152,1724230238506,-201.39984977,0.00012934,2]
[335436153,1724230238515,-320.33274363,0.00012934,2]
[335436154,1724230238526,-265.08657754,0.00012971,2]
[335436155,1724230238536,-404.50920595,0.00012971,2]
[335436156,1724230238546,-404.50920595,0.00012971,2]
[335436157,1724230238555,-81593.4376702,0.00012979,2]
[335436158,1724230238564,-493.41512582,0.00012985,2]
[335436159,1724230238575,-422.53325666,0.00012985,2]
[335436160,1724230238589,-817.69256856,0.00012985,2]
[335436161,1724230238600,-521.41855438,0.00012989,2]
[335436162,1724230238609,-154.79103211,0.00012989,2]
[335436163,1724230238619,-154.79103211,0.00012991,2]
[335436164,1724230238630,-413.74889628,0.00012999,2]
[335436165,1724230238640,-154.79103211,0.00012999,2]
[335436166,1724230238650,-779.99348464,0.00012999,2]
[335436167,1724230238664,-862.64603536,0.00013,2]
[335436168,1724230238681,-500.0,0.00013017,2]
[335436169,1724230238690,-301.59897552,0.00013025,2]
[335436170,1724230238700,-65702.57226338,0.00013689,2]
[335436181,1724230242380,-7014.77930494,0.00011999,2]
[335436182,1724230242391,-3093.28626151,0.00012782,2]
[335436183,1724230242402,-521.41855438,0.00012989,2]
[335436184,1724230242414,-413.74889628,0.00012991,2]
[335436185,1724230242424,-15890.86540682,0.00013689,2]
[335436186,1724230242434,-500.0,0.00013698,2]
[335436187,1724230242445,-500.0,0.00013698,2]
[335436188,1724230242456,-500.0,0.00013698,2]
[335436189,1724230242467,-500.0,0.00013698,2]
[335436190,1724230242476,-446.20139102,0.00013698,2]
[335436191,1724230242487,-500.0,0.00013698,2]
[335436193,1724230242497,-500.0,0.00013698,2]
[335436194,1724230242508,-500.0,0.00013698,2]
[335436195,1724230242520,-500.0,0.00013698,2]
[335436196,1724230242529,-500.0,0.00013698,2]
[335436198,1724230242539,-191.35296247,0.00013698,2]
[335436199,1724230242549,-500.0,0.00013698,2]
[335436200,1724230242559,-170.03759073,0.00013698,2]
[335436201,1724230242569,-500.0,0.00013698,2]
[335436202,1724230242584,-500.0,0.00013698,2]
[335436203,1724230242594,-500.0,0.00013698,2]
[335436204,1724230242604,-500.0,0.00013698,2]
[335436205,1724230242613,-500.0,0.00013698,2]
[335436206,1724230242625,-500.0,0.00013698,2]
[335436207,1724230242634,-500.0,0.00013698,2]
[335436208,1724230242645,-500.0,0.00013698,2]
[335436209,1724230242654,-500.0,0.00013698,2]
[335436210,1724230242668,-500.0,0.00013698,2]
[335436211,1724230242683,-500.0,0.00013698,2]
[335436212,1724230242693,-500.0,0.00013698,2]
[335436213,1724230242703,-500.0,0.00013698,2]
[335436214,1724230242712,-500.0,0.00013698,2]
[335436215,1724230242722,-500.0,0.00013698,2]
[335436216,1724230242731,-500.0,0.00013698,2]
[335436217,1724230242741,-500.0,0.00013698,2]
[335436218,1724230242751,-481.21584226,0.00013698,2]
[335436219,1724230242761,-178.9,0.00013699,2]
[335436220,1724230242771,-643.647659,0.00013699,2]
[335436221,1724230242781,-3000.0,0.00013699,2]
[335436222,1724230242790,-37200.5600151,0.00013699,2]
[335436223,1724230242800,-194.85160042,0.00013699,2]
[335436224,1724230242810,-500.0,0.00013699,2]
[335436225,1724230242821,-500.0,0.00013699,2]
[335436226,1724230242831,-500.0,0.00013699,2]
[335436227,1724230242841,-500.0,0.00013699,2]
[335436228,1724230242850,-500.0,0.00013699,2]
[335436229,1724230242860,-500.0,0.00013699,2]
[335436230,1724230242870,-500.0,0.00013699,2]
[335436231,1724230242881,-500.0,0.00013699,2]
[335436232,1724230242891,-500.0,0.00013699,2]
[335436233,1724230242901,-500.0,0.00013699,2]
[335436234,1724230242911,-500.0,0.00013699,2]
[335436235,1724230242921,-500.0,0.00013699,2]
[335436236,1724230242931,-500.0,0.00013699,2]
[335436237,1724230242941,-500.0,0.00013699,2]
[335436238,1724230242950,-500.0,0.00013699,2]
[335436239,1724230242961,-500.0,0.00013699,2]
[335436240,1724230242970,-500.0,0.00013699,2]
[335436241,1724230242980,-500.0,0.00013699,2]
[335436242,1724230242990,-500.0,0.00013699,2]
[335436243,1724230242999,-435.73936694,0.00013699,2]
[335436245,1724230243318,-64.26063306,0.00013699,2]
[335436246,1724230243328,-500.0,0.00013699,2]
[335436247,1724230243338,-500.0,0.00013699,2]
[335436248,1724230243349,-200.28693724,0.00013699,2]
[335436249,1724230243391,-57.79648044,0.00013699,2]
[335436264,1724230245864,-493.41512582,0.00012971,2]
[335436265,1724230245874,-241.91658232,0.00013699,2]
[335436266,1724230245884,-1.53909527,0.00013699,2]
[335436280,1724231360307,-299.98662587,0.00011712,2]
[335436331,1724231432012,-150.77,0.00010959,2]
[335436332,1724231432024,-645.35845291,0.00010959,2]
[335436333,1724231432069,-108.52154709,0.00010959,2]
[335436334,1724231432079,-300.0,0.00011711,2]
[335436335,1724231432088,-2681.90590824,0.00011987,2]
[335436373,1724231438103,-6979.30928154,0.00011987,2]
[335436375,1724231438114,-4350.36377503,0.00011999,2]
[335436377,1724231438123,-8845.97303828,0.00011999,2]
[335436379,1724231438133,-24900.0,0.0001201,2]
[335436380,1724231438143,-7014.77930494,0.00012163,2]
[335436381,1724231438152,-1500.0,0.00012516,2]
[335436382,1724231438161,-1520.38406535,0.00012551,2]
[335436383,1724231438171,-2143.22745307,0.00012551,2]
[335436384,1724231438180,-3093.28626151,0.00012551,2]
[335436385,1724231438189,-1151.83495537,0.00012629,2]
[335436386,1724231438199,-252.0,0.00012882,2]
[335436387,1724231438209,-521.41855438,0.00012898,2]
[335436388,1724231438218,-156.84410561,0.00012898,2]
[335436389,1724231438227,-1046.59999015,0.000129,2]
[335436390,1724231438237,-601.83952763,0.00012934,2]
[335436391,1724231438249,-518.68468753,0.00012934,2]
[335436392,1724231438258,-453.58113321,0.00012934,2]
[335436393,1724231438268,-817.69256856,0.00012934,2]
[335436394,1724231438277,-493.41512582,0.00012971,2]
[335436395,1724231438287,-320.24678748,0.00012971,2]
[335436396,1724231438297,-569.50511074,0.00012971,2]
[335436397,1724231438307,-70148.96529,0.00012979,2]
[335436398,1724231438316,-357.693327,0.00012985,2]
[335436400,1724231438326,-413.74889628,0.00012989,2]
[335436402,1724231438335,-301.59897552,0.00012989,2]
[335436403,1724231438345,-301.59897552,0.00012989,2]
[335436405,1724231438354,-862.64603536,0.00013,2]
[335436407,1724231438366,-70148.96529,0.0001303,2]
[335436409,1724231438376,-154.77557542,0.00013051,2]
[335436411,1724231438386,-288.27709255,0.00013333,2]
[335436413,1724231438395,-5328.69624806,0.00013497,2]
[335436415,1724231438404,-3891.3963926,0.00013589,2]
[335436416,1724231438414,-204.17009862,0.00013598,2]
[335436418,1724231438423,-933.9552593,0.00013598,2]
[335436420,1724231438433,-140297.93058,0.00013678,2]
[335436421,1724231438442,-14082.80760167,0.00013679,2]
[335436422,1724231438454,-861.15650857,0.00013679,2]
[335436479,1724231440580,-2282.92421799,0.00012516,3]
[335436481,1724231440590,-154.77227515,0.00013679,2]
[335436484,1724231440602,-1893.06708412,0.00013679,2]
[335436486,1724231440614,-53157.16182049,0.00013679,2]
[335436488,1724231440623,-158.13895029,0.00013688,2]
[335436490,1724231440633,-500.0,0.00013698,2]
[335436492,1724231440643,-294.83201922,0.00013698,2]
[335436494,1724231440653,-530.07625957,0.00013698,2]
[335436496,1724231440662,-500.0,0.00013698,2]
[335436498,1724231440672,-500.0,0.00013698,2]
[335436500,1724231440682,-500.0,0.00013698,2]
[335436502,1724231440691,-170.03759073,0.00013698,2]
[335436504,1724231440701,-500.0,0.00013698,2]
[335436506,1724231440710,-191.35296246,0.00013698,2]
[335436508,1724231440720,-500.0,0.00013698,2]
[335436510,1724231440730,-500.0,0.00013698,2]
[335436512,1724231440740,-500.0,0.00013698,2]
[335436515,1724231440752,-500.0,0.00013698,2]
[335436517,1724231440762,-500.0,0.00013698,2]
[335436519,1724231440772,-500.0,0.00013698,2]
[335436521,1724231440781,-500.0,0.00013698,2]
[335436522,1724231440790,-500.0,0.00013698,2]
[335436524,1724231440799,-500.0,0.00013698,2]
[335436526,1724231440808,-500.0,0.00013698,2]
[335436528,1724231440817,-500.0,0.00013698,2]
[335436530,1724231440826,-500.0,0.00013698,2]
[335436532,1724231440835,-500.0,0.00013698,2]
[335436534,1724231440844,-500.0,0.00013698,2]
[335436536,1724231440854,-500.0,0.00013698,2]
[335436538,1724231440863,-500.0,0.00013698,2]
[335436540,1724231440872,-500.0,0.00013698,2]
[335436542,1724231440881,-500.0,0.00013698,2]
[335436544,1724231440891,-253.51127233,0.00013698,2]
[335436546,1724231440900,-500.0,0.00013698,2]
[335436548,1724231440911,-500.0,0.00013698,2]
[335436550,1724231440920,-500.0,0.00013698,2]
[335436552,1724231440930,-500.0,0.00013698,2]
[335436554,1724231440940,-500.0,0.00013698,2]
[335436556,1724231440953,-741.05413006,0.00013698,2]
[335436558,1724231440963,-154.77557542,0.00013698,2]
[335436560,1724231440973,-643.647659,0.00013699,2]
[335436562,1724231440983,-3000.0,0.00013699,2]
[335436564,1724231440994,-12567.23730736,0.00013699,2]
[335436693,1724232584771,2143.22745307,7.911e-05,2]
[335436777,1724232632271,-413.74889628,0.00010739,2]
[335436779,1724232632282,-11416.67609002,0.00011409,2]
[335437336,1724232638283,-44067.21026969,0.00011409,2]
[335437338,1724232638293,-300.0,0.00011711,2]
[335437340,1724232638302,-7014.77930494,0.00011999,2]
[335437342,1724232638311,-9661.21518978,0.00011999,2]
[335437344,1724232638325,-7014.77930494,0.00011999,2]
[335437346,1724232638337,-396.30857781,0.000123,2]
[335437348,1724232638355,-7922.36204963,0.000125,2]
[335437350,1724232638366,-1500.0,0.00012516,2]
[335437352,1724232638375,-11926.1018595,0.00012691,2]
[335437354,1724232638385,-420.0,0.00012882,2]
[335437356,1724232638395,-376.96531141,0.00012886,2]
[335437359,1724232638406,-741.05413006,0.00012898,2]
[335437362,1724232638416,-27625.7580652,0.000129,2]
[335437365,1724232638427,-501.03692151,0.00012934,2]
[335437368,1724232638437,-308.60950118,0.00012934,2]
[335437371,1724232638449,-493.20713954,0.00012971,2]
[335437374,1724232638459,-330.51946571,0.00012971,2]
[335437377,1724232638468,-2282.92421799,0.00012971,3]
[335437379,1724232638477,-154.77557542,0.00012971,2]
[335437381,1724232638488,-1097.35,0.00013,2]
[335437383,1724232638498,-756.32025733,0.00013,2]
[335437385,1724232638508,-301.59897552,0.00013025,2]
[335437387,1724232638517,-158.13895029,0.00013477,2]
[335437389,1724232638527,-8840.94759604,0.00013599,2]
[335437391,1724232638537,-55245.0113255,0.00013689,2]
[335437393,1724232638547,-170.03759073,0.00013698,2]
[335437395,1724232638556,-500.0,0.00013698,2]
[335437397,1724232638565,-294.83201922,0.00013698,2]
[335437399,1724232638575,-500.0,0.00013698,2]
[335437401,1724232638584,-500.0,0.00013698,2]
[335437403,1724232638595,-500.0,0.00013698,2]
[335437405,1724232638605,-500.0,0.00013698,2]
[335437407,1724232638614,-191.35296247,0.00013698,2]
[335437409,1724232638624,-500.0,0.00013698,2]
[335437411,1724232638633,-500.0,0.00013698,2]
[335437413,1724232638644,-500.0,0.00013698,2]
[335437415,1724232638654,-500.0,0.00013698,2]
[335437418,1724232638664,-500.0,0.00013698,2]
[335437420,1724232638674,-500.0,0.00013698,2]
[335437422,1724232638684,-500.0,0.00013698,2]
[335437424,1724232638694,-152.54983477,0.00013698,2]
[335437854,1724232642958,-817.69256856,0.00012779,2]
[335437858,1724232642969,-2282.92421799,0.00012898,3]
[335437861,1724232642978,-347.45016523,0.00013698,2]
[335437864,1724232642988,-3000.0,0.00013699,2]
[335437868,1724232642998,-37200.5600151,0.00013699,2]
[335437872,1724232643007,-643.647659,0.00013699,2]
[335437875,1724232643019,-1671.09905936,0.00013699,2]
[335437878,1724232643029,-154.79103211,0.00013699,2]
[335437880,1724232643040,-194.85160042,0.00013699,2]
[335437882,1724232643049,-154.77557542,0.00013699,2]
[335437884,1724232643059,-500.0,0.00013699,2]
[335437886,1724232643068,-500.0,0.00013699,2]
[335437888,1724232643078,-500.0,0.00013699,2]
[335437890,1724232643088,-500.0,0.00013699,2]
[335437892,1724232643102,-500.0,0.00013699,2]
[335437894,1724232643111,-500.0,0.00013699,2]
[335437896,1724232643121,-530.0975952,0.00013699,2]
[335437898,1724232643130,-500.0,0.00013699,2]
[335437900,1724232643141,-500.0,0.00013699,2]
[335437902,1724232643151,-500.0,0.00013699,2]
[335437904,1724232643160,-500.0,0.00013699,2]
[335437906,1724232643170,-500.0,0.00013699,2]
[335437908,1724232643180,-500.0,0.00013699,2]
[335437910,1724232643189,-500.0,0.00013699,2]
[335437912,1724232643199,-500.0,0.00013699,2]
[335437914,1724232643208,-500.0,0.00013699,2]
[335437916,1724232643218,-500.0,0.00013699,2]
[335437918,1724232643228,-500.0,0.00013699,2]
[335437920,1724232643237,-500.0,0.00013699,2]
[335437922,1724232643247,-500.0,0.00013699,2]
[335437924,1724232643257,-500.0,0.00013699,2]
[335437926,1724232643266,-500.0,0.00013699,2]
[335437928,1724232643276,-500.0,0.00013699,2]
[335437930,1724232643285,-500.0,0.00013699,2]
[335437932,1724232643295,-500.0,0.00013699,2]
[335437934,1724232643304,-500.0,0.00013699,2]
[335437936,1724232643313,-500.0,0.00013699,2]
[335437938,1724232643323,-392.23306613,0.00013699,2]
[335437940,1724232643336,-500.0,0.00013699,2]
[335437941,1724232643350,-4836.9120636,0.00013877,2]
[335437943,1724232643360,-1143.54484415,0.00013971,2]
[335437945,1724232643371,-55245.0113255,0.00013978,2]
[335437946,1724232643380,-3000.0,0.00014,2]
[335437947,1724232643389,-300.0,0.0001417,2]
[335437948,1724232643399,-309.52024362,0.00014243,2]
[335437949,1724232643410,-521.586829,0.00014247,2]
[335437950,1724232643420,-230.13207659,0.00016605,2]
[335437951,1724232643430,-420.0,0.000167,2]
[335437952,1724232643440,-300.0,0.00018,2]
[335437953,1724232643449,-4836.91206357,0.00018945,2]
[335437954,1724232643458,-166.751608,0.00019178,2]
[335437955,1724232643468,-164.163571,0.00019178,2]
[335437957,1724232643478,-251.0,0.00019178,2]
[335437958,1724232643488,-168.983038,0.00019178,2]
[335437960,1724232643500,-159.43662435,0.00019878,2]
[335437962,1724232643510,-156.66298998,0.0002,2]
[335437964,1724232643519,-223.33384908,0.0002,2]
[335437966,1724232643528,-3001.0,0.0002,2]
[335437969,1724232643538,-300.0,0.0002,7]
[335437970,1724232643547,-918.24417891,0.0002,2]
[335437973,1724232643557,-165735.033976,0.000203,2]
[335437975,1724232643566,-126513.3262371,0.0002031,2]
[335437977,1724232643576,-154.95149391,0.0002031,2]
[335437979,1724232643585,-226.13158555,0.0002031,2]
[335437981,1724232643596,-1260.81854444,0.0002031,2]
[335437982,1724232643605,-10513.28749774,0.0002031,2]
[335437984,1724232643615,-287.17173053,0.0002031,2]
[335437987,1724232643625,-561.31651876,0.00020346,2]
[335437989,1724232643635,-377.5,0.000204,2]
[335437991,1724232643644,-194.19,0.000204,2]
[335437993,1724232643653,-1694.38,0.000204,2]
[335437995,1724232643663,-643.647659,0.00020548,2]
[335437997,1724232643672,-521.586829,0.00020707,2]
[335437999,1724232643681,-5000.0,0.00021,2]
[335438001,1724232643691,-401.4765779,0.00021315,2]
[335438003,1724232643701,-302.60665372,0.00022,2]
[335438005,1724232643710,-302.60665372,0.0002222,2]
[335438007,1724232643719,-302.60665372,0.0002244,2]
[335438009,1724232643728,-302.60665372,0.0002266,2]
[335438011,1724232643738,-451.99333763,0.0002288,2]
[335438013,1724232643748,-4836.91206357,0.00024012,2]
[335438015,1724232643758,-10343.5134042,0.00024053,2]
[335438017,1724232643768,-953.53947811,0.00024158,2]
[335438019,1724232643777,-782.718708,0.00024177,2]
[335438021,1724232643787,-435.0,0.00024177,2]
[335438023,1724232643796,-55245.0113255,0.00024181,3]
[335438025,1724232643806,-1111.18149522,0.00024193,2]
[335438027,1724232643815,-309.54884981,0.00024193,2]
[335438029,1724232643825,-1111.18149522,0.00024193,2]
[335438031,1724232643835,-882.99597685,0.00024199,2]
[335438033,1724232643850,-500.0,0.000242,2]
[335438035,1724232643859,-160.8404123,0.00024213,2]
[335438037,1724232643870,-309.52538861,0.00024213,2]
[335438039,1724232643879,-277.68803325,0.00024215,2]
[335438041,1724232643889,-500.0,0.00024351,2]
[335438043,1724232643899,-200.0,0.00024658,15]
[335438045,1724232643908,-154.79103211,0.00025,2]
[335438047,1724232643918,-196.0957584,0.00025,2]
[335438049,1724232643927,-165.0,0.00025,2]
[335438051,1724232643937,-194.19,0.000255,7]
[335438053,1724232643946,-500.0,0.00025793,2]
[335438055,1724232643956,-165.0,0.0002589,2]
[335438057,1724232643965,-377.5,0.000259,14]
[335438059,1724232643975,-5000.0,0.00026,2]
[335438061,1724232643984,-153.0,0.00026194,2]
[335438063,1724232643994,-153.0,0.00026194,2]
[335438065,1724232644004,-153.0,0.00026194,2]
[335438067,1724232644014,-156.98,0.000266,31]
[335438069,1724232644024,-1694.38,0.000269,14]